bitfinex/quotes_ETHUSD_20240902
["timestamp","ask_amount","ask_price","bid_price","bid_amount"]
[1725290110590,4.23352595,2527.8,2526.7,3.9577]
[1725290110591,0.628246,2527.0,2526.7,3.9577]
[1725290110889,2.3254,2527.4,2527.0,3.95721]
[1725290111186,3.9564,2527.6,2527.0,3.95721]
[1725290111397,7.91283,2527.6,2527.0,3.95721]
[1725290111699,7.91283,2527.6,2526.9,4.23352595]
[1725290111700,3.95672,2527.4,2526.8,6.95756]
[1725290111989,3.95696,2527.2,2526.8,3.0]
[1725290112206,3.95696,2527.2,2526.7,3.0]
[1725290112508,2.4814,2527.1,2526.0,3.95873]
[1725290112647,3.95771,2526.8,2526.0,3.95872]
[1725290112851,3.95771,2526.8,2526.2,3.9585]
[1725290113057,4.353581,2526.7,2526.2,3.9585]
[1725290113564,0.395771,2526.7,2526.2,3.95842]
[1725290113765,0.395771,2526.7,2526.3,3.95834]
[1725290114095,2.4814,2527.1,2526.6,3.95779]
[1725290114899,6.43853,2527.1,2526.6,3.95779]
[1725290115261,3.95743,2526.9,2526.4,11.19170595]
[1725290115459,0.643883,2526.9,2526.4,3.0]
[1725290115897,3.9576,2526.8,2526.4,3.0]
[1725290116069,4.601373,2526.9,2526.4,6.95819]
[1725290116285,0.8558733,2526.8,2526.4,6.95819]
[1725290116808,4.8134633,2526.8,2526.4,3.0]
[1725290117506,4.601303,2526.9,2526.4,6.95818]
[1725290117700,3.95742,2526.9,2526.4,6.95818]
[1725290118779,3.95742,2526.9,2526.4,6.95812]
[1725290119599,3.9576,2526.8,2526.4,6.95812]
[1725290120094,7.91473,2527.0,2526.4,6.95812]
[1725290120309,7.91473,2527.0,2526.4,6.95811]
[1725290120471,7.91473,2527.0,2526.4,10.91621]
[1725290120672,7.91473,2527.0,2526.4,12.007831]
[1725290120916,3.95735,2527.0,2526.4,12.007831]
[1725290121210,7.91474,2527.0,2526.4,8.049721]
[1725290121510,7.91474,2527.0,2526.4,12.007831]
[1725290122667,3.95711,2527.1,2526.6,3.9578]
[1725290123103,3.95711,2527.1,2526.6,7.91561]
[1725290123415,3.95711,2527.1,2526.6,7.9156]
[1725290123584,3.95711,2527.1,2526.7,1.15876831]
[1725290124104,7.91429,2527.1,2526.6,3.9578]
[1725290124289,3.95731,2527.0,2526.5,5.1588131]
[1725290125491,10.36704,2527.1,2526.6,3.95787]
[1725290125865,3.9573,2527.0,2526.5,5.1588131]
[1725290126596,3.95743,2526.9,2526.5,1.2007831]
[1725290127814,3.95783,2526.7,2526.4,3.0]
[1725290128016,3.95738,2527.0,2526.3,3.0]
[1725290128311,3.95774,2526.7,2526.3,3.0]
[1725290129306,3.95774,2526.7,2526.3,6.95835]
[1725290130207,3.95758,2526.8,2526.4,3.95817]
[1725290130412,3.95752,2526.9,2526.4,3.95817]
[1725290131521,3.95726,2527.0,2526.5,4.653757]
[1725290131671,7.91462,2527.0,2526.5,4.653757]
[1725290132683,3.95726,2527.0,2526.5,4.653757]
[1725290133115,7.91461,2527.0,2526.5,4.653757]
[1725290133613,3.95726,2527.0,2526.5,4.653757]
[1725290136113,3.95765,2526.8,2526.3,6.95828]
[1725290136323,3.95774,2526.7,2526.3,3.0]
[1725290136483,3.95774,2526.7,2526.3,3.945689]
[1725290137018,3.95789,2526.6,2526.3,3.945689]
[1725290138523,3.95836,2526.3,2526.0,7.31]
[1725290138726,3.95836,2526.3,2525.9,26.0148083]
[1725290138727,3.95836,2526.3,2525.9,2.2668]
[1725290138878,3.95836,2526.3,2525.9,4.55065924]
[1725290139078,7.91682,2526.3,2525.9,4.55065924]
[1725290139686,7.91681,2526.3,2525.9,4.55065924]
[1725290139887,3.95836,2526.3,2525.9,4.55065924]
[1725290140121,3.95851,2526.3,2525.7,10.31]
[1725290140279,3.95872,2526.1,2525.8,3.0]
[1725290141688,3.95872,2526.1,2525.8,4.653609]
[1725290142581,7.91747,2526.1,2525.8,4.653609]
[1725290142781,7.91747,2526.1,2525.4,16.61252238]
[1725290142782,2.2616,2526.0,2525.2,7.31]
[1725290143038,3.96018,2525.2,2524.8,2.93688848]
[1725290143645,7.92091,2525.0,2524.8,2.93688848]
[1725290143844,3.96042,2525.0,2524.8,0.61488848]
[1725290144054,3.96018,2525.2,2524.8,3.38628716]
[1725290144259,3.95992,2525.3,2524.9,3.0]
[1725290145243,3.95979,2525.4,2524.9,3.0]
[1725290145555,7.91967,2525.4,2524.9,4.76569072]
[1725290145767,3.95995,2525.3,2524.9,4.76569072]
[1725290146439,3.95918,2525.8,2525.1,2.4302]
[1725290146610,3.95953,2525.6,2525.2,0.639053]
[1725290146826,3.95953,2525.6,2525.1,2.4302]
[1725290147030,3.95976,2525.4,2525.1,2.4302]
[1725290147272,3.95976,2525.4,2525.0,3.96033]
[1725290148171,3.95976,2525.4,2525.0,5.79383579]
[1725290148473,3.95962,2525.5,2525.0,5.79383579]
[1725290149171,3.95953,2525.6,2525.0,5.79383579]
[1725290149172,3.95977,2525.4,2525.0,5.79383579]
[1725290149374,3.96025,2525.1,2524.9,3.0]
[1725290150167,7.92006,2525.3,2524.9,3.0]
[1725290150493,3.9601,2525.2,2524.9,4.71478185]
[1725290150677,6.44875,2525.6,2524.9,8.67523185]
[1725290150678,3.95985,2525.4,2524.9,8.67523185]
[1725290151179,3.95985,2525.4,2524.9,3.0]
[1725290151541,3.9601,2525.2,2524.9,3.0]
[1725290151879,3.95985,2525.4,2524.9,3.0]
[1725290151880,7.91976,2525.4,2524.9,3.0]
[1725290152235,3.95996,2525.3,2524.9,3.0]
[1725290152434,3.96008,2525.2,2524.9,3.0]
[1725290152870,3.96008,2525.2,2524.8,2.2621]
[1725290153075,3.96008,2525.2,2524.8,2.8844]
[1725290153257,3.96008,2525.2,2524.9,3.0]
[1725290153959,3.95986,2525.4,2524.9,3.0]
[1725290154168,3.95962,2525.5,2525.0,3.96036]
[1725290154398,3.95962,2525.5,2524.9,3.07920038]
[1725290154399,3.95955,2525.6,2525.1,4.66417604]
[1725290154605,3.95964,2525.5,2524.9,11.00003038]
[1725290154911,3.95964,2525.5,2525.0,1.38844304]
[1725290155076,3.95906,2525.9,2525.1,2.4006]
[1725290155283,3.95906,2525.9,2525.4,3.95969]
[1725290155586,7.91816,2525.9,2525.4,3.95969]
[1725290158124,3.95906,2525.9,2525.4,3.95969]
[1725290158289,3.95836,2526.3,2525.6,3.95942]
[1725290158290,3.95848,2526.3,2525.6,3.95942]
[1725290158493,3.95822,2526.4,2526.0,3.9588]
[1725290158710,3.95808,2526.5,2526.1,0.39588]
[1725290158911,3.95824,2526.4,2526.0,2.3788]
[1725290159691,3.95836,2526.3,2526.0,2.3788]
[1725290160626,3.95836,2526.3,2525.9,3.0]
[1725290160783,3.95836,2526.3,2525.4,6.38715]
[1725290160784,2.3101,2526.3,2525.4,6.38715]
[1725290160988,3.95908,2525.9,2525.5,3.0]
[1725290161588,3.9593,2525.7,2525.1,2.4275]
[1725290161814,10.50099238,2526.3,2525.1,2.4275]
[1725290161815,7.91941,2525.5,2525.1,2.4275]
[1725290162011,3.95987,2525.4,2524.8,2.4055]
[1725290162239,3.95969,2525.5,2524.9,4.84196624]
[1725290162616,3.95969,2525.5,2524.9,8.80241624]
[1725290162617,7.91943,2525.5,2524.9,8.80241624]
[1725290162955,3.95969,2525.5,2525.0,5.08117162]
[1725290163155,3.95969,2525.5,2525.1,3.0]
[1725290163661,3.95976,2525.4,2525.0,4.12079162]
[1725290163958,3.95976,2525.4,2525.0,3.0]
[1725290164110,3.95939,2525.7,2525.2,3.96006]
[1725290164327,7.91821,2525.9,2525.2,2.4069]
[1725290164552,3.95909,2525.9,2525.3,3.95982]
[1725290164925,3.95924,2525.8,2525.3,3.95982]
[1725290165529,3.95924,2525.8,2525.3,7.91965]
[1725290165716,0.7047357,2526.0,2525.4,3.95973]
[1725290165950,0.7047357,2526.0,2525.2,2.4069]
[1725290165951,3.95915,2525.8,2525.2,2.4069]
[1725290166131,6.4205,2526.1,2525.2,2.4069]
[1725290166132,3.95946,2525.6,2525.2,2.4069]
[1725290166326,3.95946,2525.6,2525.1,6.96014]
[1725290166848,3.95946,2525.6,2525.1,10.9203]
[1725290167232,3.95946,2525.6,2525.1,6.96014]
[1725290168063,3.95946,2525.6,2525.1,10.92026]
[1725290168357,3.95926,2525.8,2525.1,8.37426062]
[1725290168539,7.91851,2525.8,2525.3,3.95992]
[1725290168746,3.95934,2525.7,2525.2,3.96006]
[1725290168930,3.95934,2525.7,2525.2,4.79748606]
[1725290171719,7.91791,2526.0,2525.3,6.41802]
[1725290172013,7.9179,2526.0,2525.5,3.95954]
[1725290172589,3.95894,2526.0,2525.5,7.91908]
[1725290172781,3.95894,2526.0,2525.5,3.95954]
[1725290172993,3.95893,2526.0,2525.5,3.95954]
[1725290173525,0.8544387,2526.0,2525.3,2.4581]
[1725290173686,7.919,2525.6,2525.1,3.0]
[1725290173887,3.95945,2525.6,2525.1,3.96021]
[1725290174092,3.95945,2525.6,2525.2,3.0]
[1725290174289,7.91899,2525.6,2525.2,3.0]
[1725290174685,3.95945,2525.6,2525.2,3.0]
[1725290174925,7.91902,2525.6,2525.2,3.0]
[1725290175329,0.791902,2525.6,2525.2,3.0]
[1725290175628,0.791902,2525.6,2524.8,3.9607]
[1725290175629,3.9601,2525.2,2524.9,3.0]
[1725290175827,3.9601,2525.2,2524.6,6.3835]
[1725290176017,3.96059,2524.9,2524.6,2.4225]
[1725290177396,3.96086,2524.7,2524.3,2.45]
[1725290177726,3.96086,2524.7,2524.4,0.641153]
[1725290178085,3.96105,2524.6,2524.0,10.37372]
[1725290178318,3.96105,2524.6,2524.1,4.999162]
[1725290178503,3.96105,2524.6,2524.1,1.037372]
[1725290178708,3.96126,2524.5,2524.1,1.037372]
[1725290178895,3.96105,2524.6,2524.1,4.999082]
[1725290179096,3.96105,2524.6,2524.2,1.1410962]
[1725290180432,3.96134,2524.4,2524.0,2.45]
[1725290180660,3.96134,2524.4,2523.8,7.92436]
[1725290180868,3.96134,2524.4,2523.9,3.96211]
[1725290181164,3.96134,2524.4,2523.9,4.988577]
[1725290181519,3.96158,2524.3,2523.8,3.96216]
[1725290181763,3.96176,2524.2,2523.7,2.3404]
[1725290181956,2.3186,2524.5,2523.3,2.3404]
[1725290182262,3.96212,2523.9,2523.3,2.42687424]
[1725290182567,3.962,2524.0,2523.5,3.96265]
[1725290182738,3.962,2524.0,2523.6,0.79254]
[1725290183467,3.96214,2523.9,2523.4,3.96275]
[1725290184037,3.96236,2523.8,2523.3,6.30343]
[1725290184221,3.96236,2523.8,2523.3,7.75333824]
[1725290184416,3.96236,2523.8,2523.3,7.83981248]
[1725290184655,3.96214,2523.9,2523.3,7.83981248]
[1725290184855,3.96214,2523.9,2523.4,3.0]
[1725290185074,7.92434,2523.9,2523.4,3.0]
[1725290185366,3.9623,2523.8,2523.4,3.0]
[1725290185724,3.96214,2523.9,2523.4,12.82063906]
[1725290186073,3.9619,2524.1,2523.6,7.92505]
[1725290186572,3.9619,2524.1,2523.6,7.92499]
[1725290186772,3.96136,2524.4,2524.0,3.96194]
[1725290186924,6.30717,2524.7,2524.1,3.96179]
[1725290187269,2.3462,2525.0,2524.1,0.07923193]
[1725290187475,6.30667,2525.0,2524.5,3.96109]
[1725290187674,3.96057,2524.9,2524.5,3.86109]
[1725290187965,3.96057,2524.9,2524.6,0.03790862]
[1725290188174,3.96047,2525.0,2524.6,0.03790862]
[1725290188386,6.33347,2525.2,2524.6,3.99881862]
[1725290188387,3.96017,2525.2,2524.6,3.99881862]
[1725290188540,4.66292507,2525.1,2524.6,3.99881862]
[1725290188737,3.96026,2525.1,2524.6,3.99881862]
[1725290189144,3.96044,2525.0,2524.6,0.03790862]
[1725290189379,3.96004,2525.3,2524.6,0.11712699]
[1725290189684,7.92008,2525.3,2524.8,3.96068]
[1725290189977,7.92008,2525.3,2524.9,0.03740951]
[1725290191275,0.625173,2525.4,2524.9,0.03740951]
[1725290191483,3.95969,2525.5,2524.9,0.03740951]
[1725290191796,3.96033,2525.1,2524.9,0.03740951]
[1725290192085,3.96033,2525.1,2524.6,3.0]
[1725290192278,3.96003,2525.3,2525.0,0.03723822]
[1725290192454,3.96001,2525.3,2524.7,8.00072987]
[1725290192633,3.96001,2525.3,2524.6,3.0]
[1725290192634,3.95969,2525.5,2525.1,0.03721605]
[1725290192839,3.95969,2525.5,2525.0,3.96039]
[1725290193079,7.91938,2525.5,2525.2,0.03719389]
[1725290193269,4.355739,2525.4,2525.1,0.03721605]
[1725290193463,4.355739,2525.4,2525.3,0.03717173]
[1725290193983,0.395969,2525.4,2524.9,6.29433449]
[1725290194152,0.395969,2525.4,2525.0,3.99762822]
[1725290195191,7.91904,2525.6,2525.0,7.95792822]
[1725290195390,3.95962,2525.5,2525.0,4.07673525]
[1725290195716,3.95962,2525.5,2525.0,3.99753822]
[1725290196481,3.95962,2525.5,2525.0,7.95783822]
[1725290196679,3.95947,2525.6,2525.1,3.96021]
[1725290196950,3.95947,2525.6,2525.2,0.03719389]
[1725290197149,8.948931,2525.6,2525.2,0.03719389]
[1725290197350,3.95961,2525.5,2525.2,0.03719389]
[1725290197586,3.95961,2525.5,2525.0,4.03949698]
[1725290197793,3.95942,2525.7,2525.1,0.03721605]
[1725290198085,3.95942,2525.7,2525.2,3.96006]
[1725290198286,3.95965,2525.5,2525.1,0.03721605]
[1725290198449,3.95965,2525.5,2525.3,0.03871621]
[1725290198766,3.95977,2525.4,2525.0,3.9603]
[1725290198967,3.95977,2525.4,2524.9,6.21513]
[1725290199568,3.9602,2525.2,2524.7,3.96072]
[1725290199904,4.752208,2525.2,2524.8,3.0]
[1725290200068,3.9603,2525.1,2524.8,3.0]
[1725290200263,3.9603,2525.1,2524.7,6.96085]
[1725290201064,3.96004,2525.3,2524.7,6.96075]
[1725290201264,3.96004,2525.3,2524.8,3.9607]
[1725290201469,3.96004,2525.3,2524.9,3.0]
[1725290202897,3.96012,2525.2,2524.9,3.0]
[1725290203087,3.96012,2525.2,2524.8,3.0]
[1725290203607,3.96004,2525.3,2524.8,6.96061]
[1725290203968,7.92011,2525.3,2524.8,6.96061]
[1725290204164,3.96008,2525.2,2524.8,6.96061]
[1725290204614,3.96008,2525.2,2524.9,0.0388112]
[1725290204919,3.96025,2525.1,2524.9,0.0388112]
[1725290205212,3.96039,2525.0,2524.9,0.0388112]
[1725290205373,4.752454,2525.0,2524.9,0.0388112]
[1725290205721,4.752454,2525.0,2524.6,9.26589]
[1725290205722,0.792064,2525.0,2524.6,9.26589]
[1725290206016,4.752454,2525.0,2524.6,3.0]
[1725290206172,3.9607,2524.8,2524.7,0.03868299]
[1725290206414,3.9607,2524.8,2524.3,3.96142]
[1725290206629,3.9607,2524.8,2524.4,0.03875426]
[1725290206960,1.026922,2524.8,2524.5,3.96113]
[1725290207073,3.96055,2524.9,2524.5,3.96113]
[1725290207277,3.96055,2524.9,2524.6,0.0362083]
[1725290208119,7.1027457,2525.3,2524.6,0.0362083]
[1725290208302,3.96019,2525.2,2524.7,2.3976]
[1725290208618,3.96037,2525.1,2524.8,0.03652178]
[1725290208780,3.96049,2525.0,2524.5,3.96113]
[1725290209119,3.96049,2525.0,2524.6,3.03654376]
[1725290209316,3.96055,2524.9,2524.6,3.03654376]
[1725290210206,4.4587636,2525.0,2524.6,3.03654376]
[1725290210412,3.96057,2524.9,2524.6,3.03654376]
[1725290210614,3.96057,2524.9,2524.6,0.03654376]
[1725290213999,4.4587436,2525.0,2524.6,0.03654376]
[1725290214199,3.96032,2525.1,2524.6,3.99754376]
[1725290214406,7.92064,2525.1,2524.7,2.4415]
[1725290214627,7.92064,2525.1,2524.8,0.03649941]
[1725290214810,3.96032,2525.1,2524.8,0.03649941]
[1725290215650,7.9211,2524.9,2524.8,0.03649941]
[1725290216135,3.96083,2524.8,2524.3,3.0]
[1725290216334,4.587412,2525.1,2524.3,3.0]
[1725290216335,3.96088,2524.7,2524.3,3.0]
[1725290216845,3.96088,2524.7,2524.2,7.92314]
[1725290216846,3.96088,2524.7,2524.2,3.96163]
[1725290217343,3.96088,2524.7,2524.2,7.92319]
[1725290217695,3.96088,2524.7,2524.2,3.96156]
[1725290218520,7.92183,2524.7,2524.2,3.96156]
[1725290218706,3.96088,2524.7,2524.2,7.92313]
[1725290218901,3.96088,2524.7,2524.2,3.96156]
[1725290219643,3.96088,2524.7,2524.3,0.03669229]
[1725290219812,3.96088,2524.7,2524.3,3.99817229]
[1725290220010,3.96065,2524.9,2524.3,3.99817229]
[1725290220193,4.70991332,2524.9,2524.3,3.99817229]
[1725290220400,3.96072,2524.8,2524.3,3.99817229]
[1725290220904,4.70991332,2524.9,2524.5,3.96116]
[1725290221105,3.96065,2524.9,2524.5,3.9611]
[1725290221307,4.4191612,2525.0,2524.6,0.03662576]
[1725290222295,8.3796512,2525.0,2524.6,0.03662576]
[1725290222532,4.4191612,2525.0,2524.6,0.03662576]
[1725290222741,3.96018,2525.2,2524.6,4.07681976]
[1725290223051,3.96018,2525.2,2524.8,3.9607]
[1725290223250,3.96018,2525.2,2524.9,0.03659652]
[1725290224836,7.92035,2525.2,2524.9,0.03659652]
[1725290225025,3.96017,2525.2,2524.9,0.03659652]
[1725290225222,7.92035,2525.2,2524.9,0.03659652]
[1725290225401,7.92035,2525.2,2524.7,3.96085]
[1725290225402,3.96024,2525.1,2524.7,3.96085]
[1725290225607,3.96024,2525.1,2524.8,0.03661869]
[1725290225817,3.96041,2525.0,2524.8,0.03661869]
[1725290226020,3.96007,2525.3,2524.6,6.96095]
[1725290226252,3.96007,2525.3,2524.8,3.96056]
[1725290226771,3.96007,2525.3,2524.9,0.03659652]
[1725290226936,1.018451,2525.3,2524.9,0.03659652]
[1725290227136,1.018451,2525.3,2524.9,3.99708652]
[1725290227335,7.91969,2525.4,2524.9,3.99708652]
[1725290227722,3.95984,2525.4,2524.9,6.26908652]
[1725290228067,3.95956,2525.6,2525.0,3.96029]
[1725290228068,3.95963,2525.5,2525.0,3.96029]
[1725290228274,4.355586,2525.5,2525.0,3.96029]
[1725290228560,3.95996,2525.3,2525.1,0.03655219]
[1725290228765,3.95978,2525.4,2525.1,0.03655219]
[1725290228968,0.4355736,2525.4,2525.1,3.96022]
[1725290229126,4.355616,2525.5,2525.2,0.03653002]
[1725290230163,3.95977,2525.4,2525.2,0.03653002]
[1725290230464,3.95977,2525.4,2525.0,3.96037]
[1725290230622,3.95977,2525.4,2525.3,0.03843667]
[1725290230832,3.95977,2525.4,2525.0,3.96037]
[1725290231027,3.95977,2525.4,2525.1,0.03848416]
[1725290231662,0.395956,2525.5,2525.1,0.03848416]
[1725290231872,3.95978,2525.4,2525.1,0.03848416]
[1725290232229,3.95999,2525.3,2524.9,2.272]
[1725290232433,3.95999,2525.3,2525.0,0.03850791]
[1725290233348,3.95999,2525.3,2525.0,0.05830032]
[1725290234692,3.96023,2525.1,2525.0,0.05830032]
[1725290234978,11.88069,2525.1,2525.0,0.05830032]
[1725290235135,3.9607,2524.8,2524.7,27.11]
[1725290235335,7.9214,2524.8,2524.7,27.11]
[1725290235684,8.9433,2524.8,2524.7,27.11]
[1725290236173,4.9826,2524.8,2524.7,27.11]
[1725290236376,3.9607,2524.8,2524.7,27.11]
[1725290236676,3.9607,2524.8,2524.3,6.42761]
[1725290239588,2.2976,2525.0,2524.3,6.42761]
[1725290239589,3.96088,2524.7,2524.3,2.4662]
[1725290239754,3.96095,2524.7,2524.3,2.4662]
[1725290240682,3.96072,2524.8,2524.3,6.42767]
[1725290240907,3.96051,2525.0,2524.5,3.96105]
[1725290241096,3.96051,2525.0,2524.5,7.92211]
[1725290241691,3.96051,2525.0,2524.5,3.96105]
[1725290241875,3.96051,2525.0,2524.5,7.92215]
[1725290242079,3.96026,2525.1,2524.5,5.00783476]
[1725290242774,3.96039,2525.0,2524.5,5.00783476]
[1725290242999,3.96063,2524.9,2524.4,3.96119]
[1725290243206,3.96043,2525.0,2524.5,3.96107]
[1725290244205,4.752511,2525.0,2524.5,3.96107]
[1725290244565,3.96038,2525.1,2524.5,3.96107]
[1725290244799,3.96008,2525.2,2524.7,3.96077]
[1725290246227,0.395956,2525.5,2524.8,4.03980741]
[1725290246228,8.315356,2525.5,2524.8,4.03980741]
[1725290246513,2.3836,2525.6,2525.0,6.40371]
[1725290246514,6.34307,2525.6,2525.0,6.40371]
[1725290246662,3.95947,2525.6,2525.0,6.40371]
[1725290247163,3.96009,2525.2,2524.7,3.96085]
[1725290248304,7.92027,2525.2,2524.7,3.96085]
[1725290248607,3.96009,2525.2,2524.7,3.96085]
[1725290248969,3.95987,2525.4,2524.8,4.03989408]
[1725290249330,3.96,2525.3,2524.8,8.00043408]
[1725290249631,3.96,2525.3,2524.9,0.05295032]
[1725290250180,3.96,2525.3,2524.9,4.01347032]
[1725290250401,2.378,2525.5,2524.9,4.01347032]
[1725290250611,3.95977,2525.4,2524.9,4.01347032]
[1725290250966,3.95958,2525.6,2525.1,2.3813]
[1725290251162,3.95953,2525.6,2525.2,0.05285057]
[1725290252190,7.9191,2525.6,2525.2,0.05285057]
[1725290252407,8.19194238,2525.7,2525.2,0.05285057]
[1725290252562,3.95992,2525.3,2524.7,3.96085]
[1725290252766,3.51490424,2525.6,2524.7,3.96085]
[1725290252767,3.96016,2525.2,2524.8,7.01954064]
[1725290253291,3.95991,2525.4,2524.8,7.01954064]
[1725290253606,7.92001,2525.3,2524.8,7.01954064]
[1725290253803,3.96027,2525.1,2524.8,3.05887064]
[1725290254006,3.96027,2525.1,2524.8,0.05887064]
[1725290258944,7.92059,2525.1,2524.8,0.05887064]
[1725290259145,3.96055,2524.9,2524.8,0.05887064]
[1725290259506,3.96055,2524.9,2524.5,3.96118]
[1725290259727,3.96055,2524.9,2524.8,0.0583367]
[1725290259931,3.96055,2524.9,2524.5,3.96118]
[1725290260103,3.96055,2524.9,2524.8,0.0583367]
[1725290260300,3.96055,2524.9,2524.5,3.96118]
[1725290260504,3.96055,2524.9,2524.8,0.0583367]
[1725290260734,3.96055,2524.9,2524.5,3.96118]
[1725290261215,3.9604,2525.0,2524.6,0.0584106]
[1725290261545,3.9603,2525.1,2524.6,0.0584106]
[1725290261763,3.43703704,2526.1,2524.7,2.2504]
[1725290261957,1.93385589,2527.2,2525.3,3.9598]
[1725290261958,3.95907,2525.9,2525.3,3.9598]
[1725290262243,3.95907,2525.9,2525.3,4.03898985]
[1725290262447,6.28791,2526.0,2525.4,4.01778504]
[1725290263713,3.95891,2526.0,2525.4,4.01778504]
[1725290264116,3.95891,2526.0,2525.5,3.95959]
[1725290264549,3.95891,2526.0,2525.6,0.05804118]
[1725290264848,4.986088,2526.0,2525.6,0.05804118]
[1725290265352,3.95857,2526.2,2525.7,6.38387]
[1725290266412,3.95831,2526.4,2525.9,3.95898]
[1725290266707,5.41588024,2526.4,2525.8,4.0383107]
[1725290268459,3.95773,2526.7,2526.1,3.95855]
[1725290268746,3.95773,2526.7,2526.1,6.40735]
[1725290268952,3.95773,2526.7,2526.1,6.4865135]
[1725290269811,6.33558,2526.8,2526.1,2.5279635]
[1725290270045,7.91589,2526.6,2526.1,2.4488]
[1725290270236,3.9579,2526.6,2526.1,2.4488]
[1725290270402,7.91587,2526.6,2526.1,2.4488]
[1725290270911,3.95806,2526.5,2526.1,2.4488]
[1725290271249,3.95806,2526.5,2526.0,3.95871]
[1725290271444,5.09295802,2526.6,2526.0,3.95871]
[1725290271445,3.95788,2526.6,2526.0,7.91745]
[1725290271961,7.91585,2526.6,2526.0,3.95871]
[1725290273208,1.13505602,2526.6,2525.9,2.4571]
[1725290273441,3.95827,2526.4,2525.9,2.4571]
[1725290273628,7.9166,2526.4,2525.9,2.4571]
[1725290274148,3.95808,2526.5,2526.0,3.95878]
[1725290274616,3.95789,2526.6,2526.1,0.07916705]
[1725290275145,3.95789,2526.6,2526.1,4.03781705]
[1725290275516,3.95789,2526.6,2526.1,3.95865]
[1725290276170,7.91588,2526.6,2526.1,3.95865]
[1725290276609,3.95804,2526.5,2526.0,3.95881]
[1725290277117,3.95821,2526.4,2525.9,6.41607]
[1725290277307,3.95821,2526.4,2525.7,6.42927]
[1725290277616,3.95851,2526.2,2525.8,3.0]
[1725290277843,3.95836,2526.3,2525.8,9.028898]
[1725290278114,3.9582,2526.4,2526.0,2.3105]
[1725290279153,3.95805,2526.5,2526.0,6.26922]
[1725290280014,7.9162,2526.5,2526.0,6.26922]
[1725290280417,3.95805,2526.5,2526.0,6.26922]
[1725290280616,7.91621,2526.5,2526.0,6.26922]
[1725290280931,3.95849,2526.3,2525.8,9.43192]
[1725290281463,7.91697,2526.3,2525.8,9.43192]
[1725290281614,3.95848,2526.3,2525.9,0.07917077]
[1725290281820,7.91693,2526.3,2525.9,1.03027385]
[1725290282193,7.91693,2526.3,2525.8,9.43186]
[1725290282317,3.95871,2526.1,2525.8,5.4728]
[1725290282517,3.95853,2526.2,2525.8,2.4728]
[1725290282930,3.95791,2526.6,2525.8,2.4728]
[1725290282931,3.95874,2526.1,2525.8,2.4728]
[1725290283457,3.95848,2526.3,2525.8,2.55197859]
[1725290283619,3.95848,2526.3,2525.9,3.95895]
[1725290283822,3.95848,2526.3,2526.0,0.65109286]
[1725290284024,2.362,2526.7,2526.0,0.73026159]
[1725290284268,4.23252238,2526.9,2526.0,4.68894159]
[1725290284269,3.95798,2526.6,2526.0,4.68894159]
[1725290284467,3.95798,2526.6,2526.0,4.03784873]
[1725290284973,3.95808,2526.5,2526.0,4.03784873]
[1725290288781,3.95821,2526.4,2526.0,4.03784873]
[1725290291284,3.95821,2526.4,2526.0,0.07916873]
[1725290291572,3.95821,2526.4,2525.9,15.2278]
[1725290291737,3.95821,2526.4,2525.9,17.297887]
[1725290291932,4.23252238,2526.3,2525.9,7.31]
[1725290292190,3.95945,2525.6,2525.5,19.8]
[1725290292338,4.23252238,2526.0,2525.3,2.3131]
[1725290292339,3.9593,2525.7,2525.3,2.3131]
[1725290292774,3.95853,2526.2,2525.7,3.95917]
[1725290292970,3.95836,2526.3,2525.9,2.4194]
[1725290294945,3.95828,2526.4,2525.9,2.4194]
[1725290295148,3.95809,2526.5,2526.0,7.99673871]
[1725290295352,3.95809,2526.5,2526.0,4.03791871]
[1725290295596,3.95839,2526.3,2525.7,2.2937]
[1725290295808,3.95896,2526.0,2525.7,3.0]
[1725290296148,7.9182,2525.9,2525.6,3.0]
[1725290296374,3.9593,2525.7,2525.2,13.7601]
[1725290296580,3.9593,2525.7,2525.3,3.0]
[1725290297197,3.95971,2525.5,2525.2,7.31]
[1725290297416,3.95978,2525.4,2525.0,22.1841]
[1725290297715,3.95978,2525.4,2525.0,25.94865411]
[1725290299696,3.95956,2525.6,2525.0,29.90902411]
[1725290299697,3.95966,2525.5,2525.0,29.90902411]
[1725290300082,3.95956,2525.6,2525.0,33.86929411]
[1725290300286,3.95956,2525.6,2525.1,4.01493556]
[1725290300517,3.95956,2525.6,2525.1,7.97516556]
[1725290300805,3.95956,2525.6,2525.1,4.01493556]
[1725290301024,3.9592,2525.8,2525.3,3.95983]
[1725290301312,3.95899,2525.9,2525.5,2.3735]
[1725290301483,6.27004,2526.4,2525.9,3.95892]
[1725290301686,7.91628,2526.5,2525.9,4.354752]
[1725290301904,7.91628,2526.5,2525.9,3.95886]
[1725290301905,3.95814,2526.5,2525.9,3.95886]
[1725290302213,3.95828,2526.4,2525.9,3.95886]
[1725290303383,3.95828,2526.4,2525.9,6.34536]
[1725290303593,3.95828,2526.4,2525.9,6.42452929]
[1725290303989,3.95828,2526.4,2525.9,6.34536]
[1725290304240,3.95835,2526.3,2525.9,2.3865]
[1725290304532,3.95852,2526.2,2525.8,3.95898]
[1725290305453,3.95837,2526.3,2525.8,4.03815288]
[1725290305745,3.95837,2526.3,2525.8,7.99721288]
[1725290306069,3.95837,2526.3,2525.9,1.02685129]
[1725290306251,3.95837,2526.3,2525.8,4.03815288]
[1725290306641,7.9168,2526.3,2525.8,4.03815288]
[1725290306845,3.95837,2526.3,2525.8,4.03815288]
[1725290307011,7.91682,2526.3,2525.8,4.03815288]
[1725290307346,6.26956,2526.7,2525.7,2.2713]